[Event "VII Open Internacional Quart de Poblet"]
[Site "Quart de Poblet, Spain"]
[Date "2019.08.06"]
[Round "3.6"]
[White "Gonzalvez Tamarit, Ruben"]
[Black "Nieves Cabanes, Jose Manuel"]
[Result "0-1"]
[TimeControl "90m +30s por jugada"]
[WhiteFideId "32041764"]
[BlackFideId "22245715"]
[WhiteElo "2087"]
[BlackElo "2311"]

1. e4 {[%clk 01:30:53]} {[%emt 00:00:05]} e6 {[%clk 01:30:55]} {[%emt
00:00:39]} 2. d4 {[%clk 01:31:20]} d5 {[%clk 01:31:22]} 3. Bd3 {[%clk
01:31:46]} c5 {[%clk 01:31:29]} {[%emt 00:00:16]} 4. exd5 {[%clk 01:32:08]}
{[%emt 00:00:03]} exd5 {[%clk 01:31:51]} 5. Nf3 {[%clk 01:31:59]} {[%emt
00:00:35]} Nc6 {[%clk 01:31:32]} {[%emt 00:01:04]} 6. c3 {[%clk 01:32:08]}
{[%emt 00:00:07]} c4 {[%clk 01:31:14]} {[%emt 00:00:49]} 7. Bc2 {[%clk
01:32:16]} {[%emt 00:00:30]} Bd6 {[%clk 01:30:59]} {[%emt 00:00:38]} 8. O-O
{[%clk 01:32:29]} {[%emt 00:00:14]} Nge7 {[%clk 01:31:03]} {[%emt 00:00:27]} 9.
b3 {[%clk 01:29:38]} {[%emt 00:03:52]} b5 {[%clk 01:30:23]} {[%emt 00:00:41]}
10. a4 {[%clk 01:28:24]} {[%emt 00:01:42]} cxb3 {[%clk 01:30:44]} {[%emt
00:00:42]} 11. Bxb3 {[%clk 01:28:31]} {[%emt 00:00:03]} b4 {[%clk 01:31:06]}
{[%emt 00:00:06]} 12. Re1 {[%clk 01:24:27]} {[%emt 00:04:22]} O-O {[%clk
01:30:01]} {[%emt 00:01:43]} 13. c4 {[%clk 01:23:21]} {[%emt 00:01:29]} dxc4
{[%clk 01:25:20]} {[%emt 00:05:11]} 14. Bxc4 {[%clk 01:23:16]} {[%emt
00:00:40]} Bg4 {[%clk 01:23:35]} {[%emt 00:02:11]} 15. Bb2 {[%clk 01:19:03]}
{[%emt 00:05:01]} Na5 {[%clk 01:08:02]} {[%emt 00:15:44]} 16. Bd3 {[%clk
01:16:47]} {[%emt 00:02:48]} Nd5 {[%clk 01:08:01]} {[%emt 00:00:27]} 17. Be4
{[%clk 01:10:14]} {[%emt 00:07:03]} Bf4 {[%clk 01:07:02]} {[%emt 00:01:28]} 18.
h3 {[%clk 01:06:34]} {[%emt 00:04:13]} Bh5 {[%clk 01:06:14]} {[%emt 00:01:15]}
19. Qd3 {[%clk 01:05:05]} {[%emt 00:01:59]} Bg6 {[%clk 01:00:12]} {[%emt
00:06:33]} 20. Bxg6 {[%clk 01:00:38]} {[%emt 00:04:56]} hxg6 {[%clk 01:00:18]}
{[%emt 00:00:28]} 21. Nbd2 {[%clk 00:59:40]} {[%emt 00:01:45]} Bxd2 {[%clk
00:57:27]} {[%emt 00:03:03]} 22. Nxd2 {[%clk 00:59:45]} {[%emt 00:00:24]} Rc8
{[%clk 00:52:58]} {[%emt 00:04:56]} 23. Rac1 {[%clk 00:51:09]} {[%emt
00:09:28]} Nc6 {[%clk 00:48:34]} {[%emt 00:04:33]} 24. Rc5 {[%clk 00:48:04]}
{[%emt 00:03:36]} Nce7 {[%clk 00:45:00]} {[%emt 00:04:29]} 25. Qe4 {[%clk
00:29:33]} {[%emt 00:18:39]} Rc6 {[%clk 00:40:33]} {[%emt 00:04:54]} 26. Rxc6
{[%clk 00:27:36]} {[%emt 00:02:47]} Nxc6 {[%clk 00:40:59]} 27. Nf3 {[%clk
00:26:54]} {[%emt 00:01:19]} Nce7 {[%clk 00:39:49]} {[%emt 00:01:15]} 28. Ng5
{[%clk 00:21:03]} {[%emt 00:06:28]} Nf5 {[%clk 00:39:21]} {[%emt 00:00:57]} 29.
Nf3 {[%clk 00:13:35]} {[%emt 00:07:53]} a5 {[%clk 00:34:32]} {[%emt 00:05:56]}
30. Nd2 {[%clk 00:09:57]} {[%emt 00:03:30]} Qd7 {[%clk 00:32:19]} {[%emt
00:02:45]} 31. Nb3 {[%clk 00:08:06]} {[%emt 00:02:19]} Rd8 {[%clk 00:27:51]}
{[%emt 00:04:58]} 32. Nc5 {[%clk 00:07:11]} {[%emt 00:01:32]} Qc7 {[%clk
00:27:25]} {[%emt 00:00:48]} 33. Rc1 {[%clk 00:05:30]} {[%emt 00:02:13]} Qf4
{[%clk 00:26:33]} {[%emt 00:01:20]} 34. Qxf4 {[%clk 00:03:54]} {[%emt
00:02:07]} Nxf4 {[%clk 00:26:58]} {[%emt 00:00:34]} 35. Rd1 {[%clk 00:03:55]}
{[%emt 00:00:07]} Nxd4 {[%clk 00:15:59]} {[%emt 00:11:46]} 36. Bxd4 {[%clk
00:03:49]} {[%emt 00:00:14]} Rxd4 {[%clk 00:16:24]} {[%emt 00:00:07]} 37. Rxd4
{[%clk 00:04:17]} Ne2+ {[%clk 00:16:47]} {[%emt 00:00:10]} 38. Kf1 {[%clk
00:04:44]} Nxd4 {[%clk 00:17:15]} {[%emt 00:00:08]} 39. Ke1 {[%clk 00:04:54]}
{[%emt 00:00:12]} Kf8 {[%clk 00:14:39]} {[%emt 00:03:05]} 40. Kd2 {[%clk
00:05:14]} {[%emt 00:00:14]} Ke7 {[%clk 00:14:22]} {[%emt 00:01:02]} 41. Kd3
{[%clk 00:04:54]} {[%emt 00:00:30]} Nc6 {[%clk 00:12:35]} {[%emt 00:02:26]} 42.
Kc4 {[%clk 00:04:20]} {[%emt 00:00:55]} Kd6 {[%clk 00:12:01]} {[%emt 00:01:04]}
43. Nb3 {[%clk 00:03:01]} {[%emt 00:01:48]} g5 {[%clk 00:11:38]} {[%emt
00:00:53]} 44. Nc5 {[%clk 00:02:37]} {[%emt 00:00:55]} Ne5+ {[%clk 00:10:30]}
{[%emt 00:01:39]} 45. Kb5 {[%clk 00:01:53]} {[%emt 00:01:28]} Kd5 {[%clk
00:10:40]} {[%emt 00:00:27]} 46. Nb3 {[%clk 00:01:26]} {[%emt 00:00:34]} Nc4
{[%clk 00:10:29]} {[%emt 00:00:41]} 47. f3 {[%clk 00:00:32]} {[%emt 00:01:28]}
f5 {[%clk 00:07:55]} {[%emt 00:03:02]} 48. g3 {[%clk 00:00:50]} {[%emt
00:00:10]} f4 {[%clk 00:06:28]} {[%emt 00:02:01]} 49. gxf4 {[%clk 00:01:14]}
{[%emt 00:00:06]} gxf4 {[%clk 00:06:55]} {[%emt 00:00:04]} 50. h4 {[%clk
00:01:27]} {[%emt 00:00:12]} g6 {[%clk 00:07:21]} {[%emt 00:00:20]} 51. Ka6
{[%clk 00:01:19]} {[%emt 00:00:46]} Ne5 {[%clk 00:03:58]} {[%emt 00:03:28]} 52.
Kxa5 {[%clk 00:01:23]} {[%emt 00:00:29]} Kc4 {[%clk 00:04:08]} {[%emt
00:00:25]} 53. Nd2+ {[%clk 00:01:32]} {[%emt 00:00:14]} Kd3 {[%clk 00:04:17]}
{[%emt 00:00:21]} 54. Kxb4 {[%clk 00:01:37]} {[%emt 00:00:24]} Kxd2 {[%clk
00:04:42]} {[%emt 00:00:15]} 55. Kc5 {[%clk 00:01:07]} {[%emt 00:01:01]} Nxf3
{[%clk 00:03:29]} {[%emt 00:01:33]} 56. a5 {[%clk 00:00:48]} {[%emt 00:00:49]}
Ne5 {[%clk 00:03:42]} {[%emt 00:00:23]} 57. a6 {[%clk 00:00:57]} {[%emt
00:00:14]} Nd7+ {[%clk 00:03:44]} {[%emt 00:00:29]} 58. Kd6 {[%clk 00:01:02]}
{[%emt 00:00:24]} Nb6 {[%clk 00:03:42]} {[%emt 00:00:36]} 59. Kc7 {[%clk
00:00:55]} {[%emt 00:00:33]} Na8+ {[%clk 00:03:31]} {[%emt 00:00:52]} 0-1

[Event "VII Open Internacional Quart de Poblet"]
[Site "Quart de Poblet, Spain"]
[Date "2019.08.06"]
[Round "3.7"]
[White "Ventura Monfort, Javier"]
[Black "Martin Ayala, David"]
[Result "0-1"]
[TimeControl "90m +30s por jugada"]
[WhiteFideId "32023170"]
[BlackFideId "2247216"]
[WhiteElo "1678"]
[BlackElo "2109"]

1. d4 {[%clk 01:30:57]} {[%emt 00:00:18]} Nf6 {[%clk 01:30:27]} {[%emt
00:00:19]} 2. c4 {[%clk 01:31:23]} {[%emt 00:00:20]} g6 {[%clk 01:30:13]}
{[%emt 00:00:29]} 3. Nc3 {[%clk 01:29:37]} {[%emt 00:02:16]} Bg7 {[%clk
01:30:27]} {[%emt 00:00:27]} 4. e4 {[%clk 01:30:02]} d6 {[%clk 01:30:34]}
{[%emt 00:00:17]} 5. f4 {[%clk 01:30:27]} {[%emt 00:00:28]} O-O {[%clk
01:22:55]} {[%emt 00:07:56]} 6. Nf3 {[%emt 00:00:54]} c5 {[%emt 00:01:10]} 7.
d5 {[%clk 01:28:05]} {[%emt 00:01:31]} e6 {[%clk 01:20:35]} {[%emt 00:03:32]} 8.
dxe6 {[%emt 00:06:12]} fxe6 {[%clk 01:16:59]} {[%emt 00:03:24]} 9. Bd3 {[%clk
01:17:56]} {[%emt 00:05:03]} Nh5 {[%clk 01:16:33]} {[%emt 00:00:55]} 10. f5
{[%clk 01:16:10]} {[%emt 00:02:17]} exf5 {[%clk 01:16:38]} {[%emt 00:00:27]} 11.
O-O {[%clk 00:53:59]} {[%emt 00:22:41]} f4 {[%clk 01:13:22]} {[%emt 00:03:44]}
12. Bc2 {[%clk 00:39:46]} {[%emt 00:14:42]} Nc6 {[%clk 01:05:48]} {[%emt
00:08:03]} 13. Qd5+ {[%clk 00:34:32]} {[%emt 00:05:45]} Kh8 {[%clk 01:05:51]}
{[%emt 00:00:29]} 14. a3 {[%clk 00:34:15]} {[%emt 00:00:46]} Nd4 {[%clk
01:05:30]} {[%emt 00:00:48]} 15. Ba4 {[%clk 00:33:50]} {[%emt 00:00:57]} Be6
{[%clk 01:04:23]} {[%emt 00:01:44]} 16. Qxb7 {[%clk 00:33:33]} {[%emt
00:00:39]} Rf7 {[%clk 01:04:48]} {[%emt 00:00:19]} 17. Qa6 {[%clk 00:33:08]}
{[%emt 00:00:42]} Bc8 {[%clk 01:05:10]} {[%emt 00:00:31]} 18. Ng5 {[%clk
00:30:40]} {[%emt 00:02:34]} Rf8 {[%clk 01:03:34]} {[%emt 00:02:06]} 19. Ne6
{[%clk 00:26:22]} {[%emt 00:05:07]} Bxe6 {[%clk 01:00:08]} {[%emt 00:03:36]} 20.
Bd1 {[%clk 00:26:05]} {[%emt 00:00:47]} f3 {[%clk 00:54:28]} {[%emt 00:06:11]}
21. Be3 {[%clk 00:23:22]} {[%emt 00:03:13]} Rb8 {[%clk 00:51:48]} {[%emt
00:03:13]} 22. Rb1 {[%clk 00:19:06]} {[%emt 00:04:43]} Rb6 {[%clk 00:49:09]}
{[%emt 00:03:07]} 23. Qa4 {[%clk 00:11:06]} {[%emt 00:08:59]} Bd7 {[%clk
00:47:16]} {[%emt 00:02:04]} 24. Qxa7 {[%clk 00:09:09]} {[%emt 00:02:17]} Nc6
{[%clk 00:47:40]} {[%emt 00:00:36]} 25. Qa4 {[%clk 00:09:33]} {[%emt 00:00:04]}
Bxc3 {[%clk 00:48:00]} 26. bxc3 {[%clk 00:04:02]} {[%emt 00:05:43]} Rxb1 {[%clk
00:48:18]} {[%emt 00:00:44]} 27. Qc2 {[%clk 00:03:30]} {[%emt 00:00:31]} fxg2
{[%emt 00:01:23]} 28. Rxf8+ {[%clk 00:01:36]} {[%emt 00:01:47]} Qxf8 {[%clk
00:48:21]} {[%emt 00:00:10]} 29. Kxg2 {[%clk 00:01:58]} {[%emt 00:00:37]} Bh3+
{[%clk 00:48:12]} {[%emt 00:00:11]} 30. Kxh3 {[%clk 00:01:35]} {[%emt
00:01:00]} Qf1+ {[%clk 00:48:34]} {[%emt 00:00:04]} 31. Kg4 {[%clk 00:01:15]}
{[%emt 00:00:45]} Ne5+ {[%clk 00:48:15]} {[%emt 00:00:49]} 32. Kg5 {[%emt
00:01:17]} Qf6+ {[%clk 00:48:21]} {[%emt 00:00:04]} 0-1

[Event "VII Open Internacional Quart de Poblet"]
[Site "Quart de Poblet, Spain"]
[Date "2019.08.06"]
[Round "3.8"]
[White "Galvan, Jesus"]
[Black "Moronta Furio, Diego"]
[Result "1-0"]
[TimeControl "90m +30s por jugada"]
[WhiteFideId "3800458"]
[BlackFideId "22227024"]
[WhiteElo "2220"]
[BlackElo "1835"]

1. d4 {[%clk 01:30:59]} {[%emt 00:00:06]} Nf6 {[%clk 01:30:47]} 2. c4 {[%clk
01:31:24]} c5 {[%clk 01:30:43]} {[%emt 00:00:34]} 3. d5 {[%clk 01:31:49]}
{[%emt 00:00:19]} e6 {[%clk 01:30:51]} {[%emt 00:00:13]} 4. Nc3 {[%clk
01:32:14]} exd5 {[%clk 01:31:09]} {[%emt 00:00:11]} 5. cxd5 {[%clk 01:32:42]}
{[%emt 00:00:39]} d6 {[%clk 01:31:15]} {[%emt 00:00:04]} 6. e4 {[%clk
01:33:07]} g6 {[%clk 01:31:25]} {[%emt 00:00:10]} 7. f4 {[%clk 01:33:33]}
{[%emt 00:00:04]} Bg7 {[%clk 01:31:29]} {[%emt 00:00:24]} 8. Bb5+ {[%clk
01:33:59]} {[%emt 00:00:15]} Nfd7 {[%clk 01:31:31]} {[%emt 00:00:19]} 9. a4
{[%clk 01:34:24]} {[%emt 00:00:07]} O-O {[%clk 01:30:46]} {[%emt 00:01:10]} 10.
Nf3 {[%clk 01:34:50]} {[%emt 00:00:34]} Na6 {[%clk 01:29:05]} {[%emt 00:01:45]}
11. O-O {[%clk 01:35:15]} {[%emt 00:00:08]} Nb4 {[%clk 01:29:06]} {[%emt
00:00:23]} 12. Re1 {[%clk 01:34:58]} {[%emt 00:00:53]} a6 {[%clk 01:28:20]}
{[%emt 00:01:09]} 13. Bf1 {[%clk 01:35:12]} {[%emt 00:00:15]} Re8 {[%clk
01:24:02]} {[%emt 00:04:49]} 14. a5 {[%clk 01:29:38]} {[%emt 00:06:16]} Nf6
{[%clk 01:17:14]} {[%emt 00:07:13]} 15. h3 {[%clk 01:29:54]} {[%emt 00:00:10]}
Nh5 {[%clk 01:07:48]} {[%emt 00:10:17]} 16. Kh2 {[%clk 01:26:57]} {[%emt
00:03:04]} Bh6 {[%clk 00:36:17]} {[%emt 00:32:01]} 17. g3 {[%clk 01:22:29]}
{[%emt 00:04:57]} b5 {[%clk 00:35:06]} {[%emt 00:01:41]} 18. axb6 {[%clk
01:21:29]} {[%emt 00:01:29]} Qxb6 {[%clk 00:35:03]} {[%emt 00:00:33]} 19. Be3
{[%clk 01:19:00]} {[%emt 00:02:58]} Bb7 {[%clk 00:18:52]} {[%emt 00:16:42]} 20.
Qd2 {[%clk 01:14:24]} {[%emt 00:05:15]} Rad8 {[%clk 00:17:47]} {[%emt
00:01:28]} 21. g4 {[%clk 01:05:56]} {[%emt 00:08:58]} Bxf4+ {[%clk 00:05:41]}
{[%emt 00:12:33]} 22. Bxf4 {[%clk 01:02:16]} {[%emt 00:04:10]} Nxf4 {[%clk
00:06:09]} {[%emt 00:00:08]} 23. Qxf4 {[%clk 00:52:54]} {[%emt 00:09:45]} Nc2
{[%clk 00:06:38]} {[%emt 00:00:34]} 24. Qd2 {[%clk 00:50:43]} {[%emt 00:02:10]}
Nxa1 {[%clk 00:04:57]} {[%emt 00:02:13]} 25. Rxa1 {[%clk 00:51:09]} {[%emt
00:00:03]} Rb8 {[%clk 00:02:53]} {[%emt 00:02:32]} 26. Bc4 {[%clk 00:50:50]}
{[%emt 00:00:49]} Bc8 {[%clk 00:02:50]} {[%emt 00:00:33]} 27. b3 {[%clk
00:51:16]} {[%emt 00:00:08]} Qc7 {[%clk 00:02:56]} {[%emt 00:00:27]} 28. Rf1
{[%emt 00:04:06]} Bd7 29. e5 dxe5 {[%emt 00:00:06]} 30. d6 {Bandera} 1-0

[Event "VII Open Internacional Quart de Poblet"]
[Site "Quart de Poblet, Spain"]
[Date "2019.08.06"]
[Round "3.9"]
[White "Candel Ribarrocha, Rafael"]
[Black "Villarreal Tomas, Andrea"]
[Result "0-1"]
[TimeControl "90m +30s por jugada"]
[WhiteFideId "24510351"]
[BlackFideId "24580392"]
[WhiteElo "1009"]
[BlackElo "1228"]

1. d4 {[%clk 01:30:54]} {[%emt 00:00:05]} Nf6 {[%clk 01:25:37]} {[%emt
00:05:23]} 2. c4 {[%clk 01:31:13]} {[%emt 00:00:11]} c5 {[%clk 01:25:59]}
{[%emt 00:00:09]} 3. d5 {[%clk 01:31:24]} {[%emt 00:00:20]} b5 {[%clk
01:26:20]} {[%emt 00:00:08]} 4. b3 {[%clk 01:31:09]} {[%emt 00:00:45]} g6
{[%clk 01:25:40]} {[%emt 00:01:11]} 5. Bb2 {[%clk 01:30:06]} {[%emt 00:01:32]}
Bg7 {[%clk 01:25:52]} {[%emt 00:00:18]} 6. Nc3 {[%clk 01:29:11]} {[%emt
00:01:26]} bxc4 {[%clk 01:24:00]} {[%emt 00:02:22]} 7. bxc4 {[%clk 01:25:35]}
{[%emt 00:04:06]} Qb6 {[%clk 01:20:43]} {[%emt 00:03:40]} 8. Qb3 {[%clk
01:21:53]} {[%emt 00:04:18]} Na6 {[%clk 01:16:28]} {[%emt 00:04:46]} 9. Na4
{[%clk 01:17:14]} {[%emt 00:05:09]} Qb7 {[%clk 01:10:31]} {[%emt 00:06:27]} 10.
Nc3 {[%clk 01:07:34]} {[%emt 00:10:10]} Rb8 {[%clk 01:09:39]} {[%emt 00:01:23]}
11. Qb5 {[%clk 01:03:07]} {[%emt 00:04:57]} O-O {[%clk 01:08:56]} {[%emt
00:01:12]} 12. Na4 {[%clk 01:00:22]} {[%emt 00:03:15]} d6 {[%clk 01:04:23]}
{[%emt 00:05:03]} 13. a3 {[%clk 00:58:19]} {[%emt 00:02:33]} Bd7 {[%clk
01:03:09]} {[%emt 00:01:43]} 14. Qxb7 {[%clk 00:57:18]} {[%emt 00:01:32]} Rxb7
{[%clk 01:03:29]} {[%emt 00:00:11]} 15. Bxf6 {[%emt 00:06:00]} Bxf6 {[%emt
00:00:13]} 16. Nb2 {[%clk 00:50:17]} {[%emt 00:00:51]} Rxb2 {[%clk 01:03:17]}
{[%emt 00:01:07]} 17. e4 {[%clk 00:47:32]} {[%emt 00:03:15]} Bc3+ {[%clk
01:02:26]} {[%emt 00:01:21]} 18. Kd1 {[%clk 00:46:54]} {[%emt 00:01:09]} Ba4+
{[%clk 01:02:14]} {[%emt 00:00:42]} 19. Kc1 {[%clk 00:46:54]} {[%emt 00:00:29]}
Rc2+ {[%clk 01:02:28]} {[%emt 00:00:17]} 20. Kb1 {[%clk 00:46:11]} {[%emt
00:00:48]} Rb8# {[%clk 01:02:47]} {[%emt 00:00:36]} 0-1

[Event "VII Open Internacional Quart de Poblet"]
[Site "Quart de Poblet, Spain"]
[Date "2019.08.07"]
[Round "4.1"]
[White "Chernikov, Vladimir"]
[Black "Cruz Lledo, Pablo"]
[Result "1/2-1/2"]
[TimeControl "90m +30s por jugada"]
[WhiteFideId "14112914"]
[BlackFideId "2297361"]
[WhiteElo "2315"]
[BlackElo "2445"]

1. c4 {[%clk 01:30:58]} {[%emt 00:00:06]} e6 {[%clk 01:29:46]} {[%emt
00:01:22]} 2. Nf3 {[%clk 01:30:32]} {[%emt 00:00:44]} d5 {[%clk 01:29:48]}
{[%emt 00:00:33]} 3. e3 {[%clk 01:30:55]} {[%emt 00:00:05]} Nf6 {[%clk
01:30:08]} {[%emt 00:00:06]} 4. b3 {[%clk 01:31:19]} {[%emt 00:00:11]} c5
{[%clk 01:30:27]} {[%emt 00:00:07]} 5. Bb2 {[%clk 01:31:41]} {[%emt 00:00:07]}
Nc6 {[%clk 01:30:42]} {[%emt 00:00:16]} 6. cxd5 {[%clk 01:31:44]} {[%emt
00:00:26]} Nxd5 {[%clk 01:31:01]} {[%emt 00:00:12]} 7. Be2 {[%clk 01:31:42]}
{[%emt 00:00:39]} Nf6 {[%clk 01:26:08]} {[%emt 00:05:17]} 8. O-O {[%clk
01:31:43]} {[%emt 00:00:29]} Be7 {[%clk 01:26:36]} {[%emt 00:00:09]} 9. d4
{[%clk 01:31:54]} {[%emt 00:00:12]} O-O {[%clk 01:26:06]} {[%emt 00:01:00]} 10.
dxc5 {[%clk 01:29:18]} {[%emt 00:03:05]} Qxd1 {[%clk 01:26:12]} {[%emt
00:00:24]} 11. Rxd1 {[%clk 01:29:17]} {[%emt 00:00:52]} Bxc5 {[%clk 01:26:31]}
12. Nc3 {[%clk 01:15:16]} {[%emt 00:14:22]} Bd7 {[%clk 01:17:53]} {[%emt
00:09:08]} 13. Na4 {[%clk 01:10:02]} {[%emt 00:05:43]} Be7 {[%clk 01:18:09]}
{[%emt 00:00:14]} 14. Nc5 {[%clk 01:07:10]} {[%emt 00:03:22]} Bxc5 {[%clk
01:16:50]} {[%emt 00:01:51]} 15. Bxf6 {[%clk 01:07:15]} {[%emt 00:00:22]} gxf6
{[%clk 01:15:11]} {[%emt 00:02:09]} 16. Rxd7 {[%clk 01:07:36]} {[%emt
00:00:10]} Rab8 {[%clk 01:14:12]} {[%emt 00:01:29]} 17. Rad1 {[%clk 00:59:21]}
{[%emt 00:08:45]} Rfd8 {[%clk 01:13:40]} {[%emt 00:01:10]} 18. Rxd8+ {[%clk
00:50:45]} {[%emt 00:09:01]} Rxd8 {[%clk 01:13:37]} {[%emt 00:00:32]} 19. Rxd8+
{[%clk 00:51:08]} {[%emt 00:00:06]} Nxd8 {[%clk 01:13:53]} {[%emt 00:00:12]} 20.
Ne1 {[%clk 00:49:36]} {[%emt 00:02:07]} Kf8 {[%clk 01:13:28]} {[%emt 00:00:52]}
21. Bd3 {[%clk 00:48:21]} {[%emt 00:01:43]} f5 {[%clk 01:13:42]} {[%emt
00:00:16]} 22. Kf1 {[%clk 00:47:43]} {[%emt 00:01:14]} Nc6 {[%clk 01:13:23]}
{[%emt 00:00:44]} 23. Ke2 {[%clk 00:47:48]} {[%emt 00:00:24]} Ke7 {[%clk
01:13:33]} {[%emt 00:00:21]} 24. Nf3 {[%clk 00:46:40]} {[%emt 00:01:40]} Kf6
{[%clk 01:13:27]} {[%emt 00:00:34]} 25. e4 {[%clk 00:45:08]} {[%emt 00:02:06]}
Nd4+ {[%clk 01:13:10]} {[%emt 00:00:44]} 26. Nxd4 {[%clk 00:45:30]} {[%emt
00:00:08]} Bxd4 {[%clk 01:13:36]} {[%emt 00:00:05]} 27. exf5 {[%clk 00:45:55]}
{[%emt 00:00:05]} exf5 {[%clk 01:14:01]} {[%emt 00:00:05]} 28. g4 {[%clk
00:46:09]} {[%emt 00:00:14]} fxg4 {[%clk 01:14:23]} {[%emt 00:00:08]} 29. Bxh7
{[%clk 00:46:29]} {[%emt 00:00:11]} Be5 {[%clk 01:14:33]} {[%emt 00:00:20]} 30.
Be4 {[%clk 00:46:49]} {[%emt 00:00:10]} b6 {[%clk 01:14:56]} {[%emt 00:00:07]}
31. f3 {[%clk 00:46:55]} {[%emt 00:00:24]} gxf3+ {[%clk 01:15:07]} {[%emt
00:00:23]} 32. Kxf3 {[%clk 00:47:16]} {[%emt 00:00:05]} Bxh2 {[%clk 01:15:32]}
{[%emt 00:00:07]} 33. a4 {[%clk 00:47:39]} {[%emt 00:00:07]} Ke5 {[%clk
01:15:54]} {[%emt 00:00:06]} 34. Bd3 {[%clk 00:47:55]} {[%emt 00:00:14]} f5
{[%clk 01:16:17]} {[%emt 00:00:06]} 35. Bc4 {[%clk 00:48:19]} {[%emt 00:00:06]}
f4 {[%clk 01:16:33]} {[%emt 00:00:14]} 36. Bg8 {[%clk 00:48:19]} {[%emt
00:00:30]} Bg3 {[%clk 01:17:00]} {[%emt 00:00:07]} 1/2-1/2